[Event "Mistrovství Čech mládeže 2023 - HD16"]
[Site "Harrachov, Czech Republic"]
[Date "2023.10.22"]
[Round "2.20"]
[White "Pressler, Tobias"]
[Black "Zahradník, Viktor Ferdinand"]
[Result "1-0"]
[TimeControl "90m + 30s"]
[WhiteElo "1965"]
[BlackElo "1360"]

1. e4 {[%clk 01:30:46]} {[%emt 00:00:05]} c6 {[%clk 01:30:57]} {[%emt
00:00:11]} 2. d4 {[%clk 01:31:12]} {[%emt 00:00:05]} d5 {[%clk 01:31:23]}
{[%emt 00:00:04]} 3. exd5 {[%clk 01:31:39]} {[%emt 00:00:03]} cxd5 {[%clk
01:31:47]} {[%emt 00:00:06]} 4. Bd3 {[%clk 01:32:06]} {[%emt 00:00:03]} Nc6
{[%clk 01:32:09]} {[%emt 00:00:08]} 5. c3 {[%clk 01:32:31]} {[%emt 00:00:05]}
Nf6 {[%clk 01:32:33]} {[%emt 00:00:06]} 6. Nd2 {[%clk 01:32:12]} {[%emt
00:00:49]} Bg4 {[%clk 01:30:29]} {[%emt 00:02:34]} 7. Ngf3 {[%clk 01:29:56]}
{[%emt 00:02:46]} e6 {[%clk 01:30:47]} {[%emt 00:00:12]} 8. h3 {[%clk
01:29:26]} {[%emt 00:01:00]} Bxf3 {[%clk 01:29:54]} {[%emt 00:01:23]} 9. Nxf3
{[%clk 01:29:39]} {[%emt 00:00:17]} Bd6 {[%clk 01:29:56]} {[%emt 00:00:27]} 10.
Qe2 {[%clk 01:29:38]} {[%emt 00:00:32]} O-O {[%clk 01:27:50]} {[%emt 00:02:36]}
11. Ne5 {[%clk 01:29:24]} {[%emt 00:00:43]} h6 {[%clk 01:25:43]} {[%emt
00:02:37]} 12. f4 {[%clk 01:29:26]} {[%emt 00:00:28]} Bxe5 {[%clk 01:24:38]}
{[%emt 00:01:35]} 13. fxe5 {[%clk 01:29:48]} {[%emt 00:00:09]} Nh7 {[%clk
01:25:02]} {[%emt 00:00:06]} 14. O-O {[%clk 01:29:30]} {[%emt 00:00:47]} f5
{[%clk 01:25:09]} {[%emt 00:00:23]} 15. exf6 {[%clk 01:22:55]} {[%emt
00:07:06]} Rxf6 {[%clk 01:23:24]} {[%emt 00:02:15]} 16. Bf4 {[%clk 01:22:11]}
{[%emt 00:01:14]} Qb6 {[%clk 01:17:44]} {[%emt 00:06:10]} 17. Qc2 {[%clk
01:18:05]} {[%emt 00:04:36]} Nf8 {[%clk 01:16:57]} {[%emt 00:01:17]} 18. Rae1
{[%clk 01:18:27]} {[%emt 00:00:07]} Rc8 {[%clk 01:13:45]} {[%emt 00:03:42]} 19.
Qe2 {[%clk 01:16:48]} {[%emt 00:02:09]} Re8 {[%clk 01:10:07]} {[%emt 00:04:08]}
20. Kh1 {[%clk 01:14:36]} {[%emt 00:02:43]} Ng6 {[%clk 01:08:01]} {[%emt
00:02:36]} 21. Bxh6 {[%clk 01:13:00]} {[%emt 00:02:06]} Ref8 {[%clk 01:00:28]}
{[%emt 00:08:03]} 22. Rxf6 {[%clk 01:13:00]} {[%emt 00:00:30]} Rxf6 {[%clk
01:00:46]} {[%emt 00:00:11]} 23. Bg5 {[%clk 01:13:25]} {[%emt 00:00:05]} Nf4
{[%clk 01:00:23]} {[%emt 00:00:53]} 24. Bxf4 {[%clk 01:13:16]} {[%emt
00:00:40]} Rxf4 {[%clk 01:00:20]} {[%emt 00:00:32]} 25. Qxe6+ {[%clk 01:13:41]}
{[%emt 00:00:05]} Rf7 {[%clk 01:00:31]} {[%emt 00:00:19]} 26. Bg6 {[%clk
01:14:08]} {[%emt 00:00:04]} Qd8 {[%clk 00:59:28]} {[%emt 00:01:33]} 27. Qxf7+
{[%clk 01:13:05]} {[%emt 00:01:32]} Kh8 {[%clk 00:57:46]} {[%emt 00:02:12]} 28.
Qe8+ {[%clk 01:13:31]} {[%emt 00:00:05]} Qxe8 {[%clk 00:58:09]} {[%emt
00:00:07]} 29. Rxe8# {[%clk 01:13:58]} {[%emt 00:00:03]} 1-0

[Event "Mistrovství Čech mládeže 2023 - HD16"]
[Site "Harrachov, Czech Republic"]
[Date "2023.10.23"]
[Round "3.1"]
[White "Davídek, Zdeněk"]
[Black "Kaplanová, Dominika"]
[Result "1-0"]
[TimeControl "90m + 30s"]
[WhiteElo "2110"]
[BlackElo "1782"]

1. d4 {[%clk 01:30:54]} {[%emt 00:00:04]} d5 {[%clk 01:30:27]} {[%emt
00:00:33]} 2. c4 {[%clk 01:30:03]} {[%emt 00:01:21]} dxc4 {[%clk 01:29:51]}
{[%emt 00:01:06]} 3. Nc3 {[%clk 01:27:52]} {[%emt 00:02:41]} Nf6 {[%clk
01:28:30]} {[%emt 00:01:50]} 4. e4 {[%clk 01:27:12]} {[%emt 00:01:10]} c5
{[%clk 01:23:57]} {[%emt 00:05:03]} 5. d5 {[%clk 01:27:01]} {[%emt 00:00:42]}
b5 {[%clk 01:22:11]} {[%emt 00:02:16]} 6. e5 {[%clk 00:56:24]} {[%emt
00:31:07]} b4 {[%clk 01:20:11]} {[%emt 00:02:30]} 7. exf6 {[%clk 00:49:07]}
{[%emt 00:07:47]} bxc3 {[%clk 01:20:00]} {[%emt 00:00:40]} 8. bxc3 {[%clk
00:48:33]} {[%emt 00:01:05]} Nd7 {[%clk 01:17:57]} {[%emt 00:02:33]} 9. fxe7
{[%clk 00:25:24]} {[%emt 00:23:40]} Qxe7+ {[%clk 01:14:29]} {[%emt 00:03:58]}
10. Be3 {[%clk 00:24:00]} {[%emt 00:01:53]} Nb6 {[%clk 01:10:59]} {[%emt
00:04:00]} 11. Bxc4 {[%clk 00:24:04]} {[%emt 00:00:26]} Bd7 {[%clk 01:03:20]}
{[%emt 00:08:09]} 12. Be2 {[%clk 00:23:23]} {[%emt 00:01:11]} Qe5 {[%clk
00:57:11]} {[%emt 00:06:38]} 13. Rc1 {[%clk 00:23:29]} {[%emt 00:00:25]} Nxd5
{[%clk 00:41:56]} {[%emt 00:15:45]} 14. Nf3 {[%clk 00:23:33]} {[%emt 00:00:26]}
Qd6 {[%clk 00:34:26]} {[%emt 00:08:00]} 15. Bg5 {[%clk 00:21:03]} {[%emt
00:03:01]} Nb6 {[%clk 00:30:14]} {[%emt 00:04:42]} 16. Qc2 {[%clk 00:20:43]}
{[%emt 00:00:50]} h6 {[%clk 00:26:59]} {[%emt 00:03:46]} 17. Bh4 {[%clk
00:21:07]} {[%emt 00:00:07]} Be7 {[%clk 00:24:37]} {[%emt 00:02:51]} 18. Bg3
{[%clk 00:20:55]} {[%emt 00:00:42]} Qe6 {[%clk 00:23:55]} {[%emt 00:01:11]} 19.
Ne5 {[%clk 00:17:07]} {[%emt 00:04:19]} Ba4 {[%clk 00:17:46]} {[%emt 00:06:39]}
20. Qe4 {[%clk 00:16:43]} {[%emt 00:00:54]} Qd5 {[%clk 00:13:06]} {[%emt
00:05:10]} 21. Qg4 {[%clk 00:13:17]} {[%emt 00:03:57]} Rd8 {[%clk 00:09:37]}
{[%emt 00:03:59]} 22. O-O {[%clk 00:13:28]} {[%emt 00:00:19]} Bf6 {[%clk
00:09:08]} {[%emt 00:00:59]} 23. Bf3 {[%clk 00:12:12]} {[%emt 00:01:47]} Qe6
{[%clk 00:06:48]} {[%emt 00:02:49]} 24. Qxe6+ {[%clk 00:12:10]} {[%emt
00:00:32]} fxe6 {[%clk 00:07:17]} {[%emt 00:00:02]} 25. Bh5+ {[%clk 00:12:35]}
{[%emt 00:00:05]} g6 {[%clk 00:05:32]} {[%emt 00:02:14]} 26. Nxg6 {[%clk
00:12:24]} {[%emt 00:00:41]} Rg8 {[%clk 00:05:02]} {[%emt 00:01:01]} 27. Rfe1
{[%clk 00:12:26]} {[%emt 00:00:28]} Kd7 {[%clk 00:03:52]} {[%emt 00:01:39]} 28.
Ne5+ {[%clk 00:11:18]} {[%emt 00:01:39]} Bxe5 {[%clk 00:03:02]} {[%emt
00:01:21]} 29. Rxe5 {[%clk 00:11:46]} {[%emt 00:00:01]} Ke7 {[%clk 00:02:27]}
{[%emt 00:01:04]} 30. Bh4+ {[%clk 00:10:28]} {[%emt 00:01:49]} Kd6 {[%clk
00:02:42]} {[%emt 00:00:14]} 31. Rce1 {[%clk 00:10:45]} {[%emt 00:00:13]} 1-0

[Event "Mistrovství Čech mládeže 2023 - HD16"]
[Site "Harrachov, Czech Republic"]
[Date "2023.10.23"]
[Round "3.2"]
[White "Svoboda, Daniel"]
[Black "Hozda, Max"]
[Result "1/2-1/2"]
[TimeControl "90m + 30s"]
[WhiteElo "1766"]
[BlackElo "2105"]

1. e4 {[%clk 01:30:58]} {[%emt 00:00:02]} d5 {[%clk 01:28:14]} {[%emt
00:02:46]} 2. exd5 {[%clk 01:31:06]} {[%emt 00:00:22]} Qxd5 {[%clk 01:28:29]}
{[%emt 00:00:15]} 3. Nc3 {[%clk 01:30:49]} {[%emt 00:00:47]} Qa5 {[%clk
01:28:53]} {[%emt 00:00:06]} 4. d4 {[%clk 01:30:33]} {[%emt 00:00:45]} Nf6
{[%clk 01:29:16]} {[%emt 00:00:08]} 5. Bd3 {[%clk 01:27:36]} {[%emt 00:03:27]}
c6 {[%clk 01:29:30]} {[%emt 00:00:16]} 6. Nf3 {[%clk 01:27:16]} {[%emt
00:00:50]} Bg4 {[%clk 01:29:35]} {[%emt 00:00:26]} 7. h3 {[%clk 01:26:05]}
{[%emt 00:01:38]} Bh5 {[%clk 01:29:20]} {[%emt 00:00:47]} 8. O-O {[%clk
01:19:27]} {[%emt 00:07:08]} e6 {[%clk 01:26:20]} {[%emt 00:03:30]} 9. Ne4
{[%clk 01:08:05]} {[%emt 00:11:52]} Nbd7 {[%clk 01:19:07]} {[%emt 00:07:44]} 10.
Bf4 {[%clk 01:03:29]} {[%emt 00:05:06]} Nxe4 {[%clk 01:11:34]} {[%emt
00:08:03]} 11. Bxe4 {[%clk 01:02:59]} {[%emt 00:00:59]} Be7 {[%clk 01:08:33]}
{[%emt 00:03:31]} 12. Re1 {[%clk 00:55:19]} {[%emt 00:08:11]} Nf6 {[%clk
01:05:29]} {[%emt 00:03:34]} 13. Bd3 {[%clk 00:51:50]} {[%emt 00:03:59]} Qb6
{[%clk 01:00:33]} {[%emt 00:05:26]} 14. Be5 {[%clk 00:41:54]} {[%emt 00:10:25]}
O-O {[%clk 00:56:51]} {[%emt 00:04:12]} 15. Qe2 {[%clk 00:32:28]} {[%emt
00:09:57]} c5 {[%clk 00:48:37]} {[%emt 00:08:43]} 16. c3 {[%clk 00:27:02]}
{[%emt 00:05:56]} 1/2-1/2

[Event "Mistrovství Čech mládeže 2023 - HD16"]
[Site "Harrachov, Czech Republic"]
[Date "2023.10.23"]
[Round "3.3"]
[White "Hrbek, Jáchym"]
[Black "Stein, Michael"]
[Result "1-0"]
[TimeControl "90m + 30s"]
[WhiteElo "1973"]
[BlackElo "1717"]

1. e4 {[%clk 01:30:37]} {[%emt 00:00:22]} e6 {[%clk 01:30:50]} {[%emt
00:00:11]} 2. Nf3 {[%clk 01:30:53]} {[%emt 00:00:13]} d5 {[%clk 01:31:15]}
{[%emt 00:00:05]} 3. e5 {[%clk 01:31:15]} {[%emt 00:00:08]} c5 {[%clk
01:31:34]} {[%emt 00:00:12]} 4. b4 {[%clk 01:31:37]} {[%emt 00:00:08]} c4
{[%clk 01:31:07]} {[%emt 00:00:57]} 5. c3 {[%clk 01:30:34]} {[%emt 00:01:33]}
Qc7 {[%clk 01:28:32]} {[%emt 00:03:05]} 6. d3 {[%clk 01:29:59]} {[%emt
00:01:04]} cxd3 {[%clk 01:26:49]} {[%emt 00:02:14]} 7. Bxd3 {[%clk 01:30:04]}
{[%emt 00:00:23]} Nc6 {[%clk 01:24:37]} {[%emt 00:02:45]} 8. Bf4 {[%clk
01:24:04]} {[%emt 00:06:29]} Bd7 {[%clk 01:21:36]} {[%emt 00:03:31]} 9. O-O
{[%clk 01:22:01]} {[%emt 00:02:33]} Nge7 {[%clk 01:20:04]} {[%emt 00:02:02]} 10.
Qe2 {[%clk 01:16:44]} {[%emt 00:05:46]} Ng6 {[%clk 01:17:39]} {[%emt 00:02:56]}
11. Bg3 {[%clk 01:16:54]} {[%emt 00:00:20]} Rc8 {[%clk 01:15:27]} {[%emt
00:02:42]} 12. h4 {[%clk 01:10:45]} {[%emt 00:06:38]} Nge7 {[%clk 01:08:27]}
{[%emt 00:07:31]} 13. Na3 {[%clk 01:06:11]} {[%emt 00:05:04]} a6 {[%clk
00:58:39]} {[%emt 00:10:18]} 14. Rab1 {[%clk 00:58:26]} {[%emt 00:08:15]} Na7
{[%clk 00:54:05]} {[%emt 00:05:04]} 15. b5 {[%clk 00:20:04]} {[%emt 00:38:52]}
Qa5 {[%clk 00:39:01]} {[%emt 00:15:33]} 16. Rb3 {[%clk 00:14:10]} {[%emt
00:06:25]} axb5 {[%clk 00:31:23]} {[%emt 00:08:07]} 17. Nxb5 {[%clk 00:14:04]}
{[%emt 00:00:36]} Nxb5 {[%clk 00:29:19]} {[%emt 00:02:34]} 18. Bxb5 {[%clk
00:14:32]} {[%emt 00:00:02]} Nc6 {[%clk 00:26:53]} {[%emt 00:02:56]} 19. Bd3
{[%clk 00:14:09]} {[%emt 00:00:52]} Qc7 {[%clk 00:25:02]} {[%emt 00:02:21]} 20.
Ng5 {[%clk 00:11:30]} {[%emt 00:03:10]} Na5 {[%clk 00:22:21]} {[%emt 00:03:11]}
21. Rbb1 {[%clk 00:06:12]} {[%emt 00:05:48]} Be7 {[%clk 00:19:24]} {[%emt
00:03:28]} 22. Nxh7 {[%clk 00:04:48]} {[%emt 00:01:54]} g6 {[%clk 00:16:25]}
{[%emt 00:03:28]} 23. Nf6+ {[%clk 00:03:46]} {[%emt 00:01:31]} Bxf6 {[%clk
00:16:54]} {[%emt 00:00:02]} 24. exf6 {[%clk 00:04:14]} {[%emt 00:00:01]} Qxc3
{[%clk 00:16:45]} {[%emt 00:00:39]} 25. Be5 {[%clk 00:04:10]} {[%emt 00:00:34]}
d4 {[%clk 00:15:51]} {[%emt 00:01:25]} 26. Qf3 {[%clk 00:03:47]} {[%emt
00:00:53]} Bc6 {[%clk 00:14:03]} {[%emt 00:02:18]} 27. Qg3 {[%clk 00:03:48]}
{[%emt 00:00:25]} Bd5 {[%clk 00:11:52]} {[%emt 00:02:44]} 28. Bf4 {[%clk
00:01:52]} {[%emt 00:02:25]} Nc4 {[%clk 00:08:08]} {[%emt 00:04:15]} 29. Rfc1
{[%clk 00:01:42]} {[%emt 00:00:40]} Qa3 {[%clk 00:07:55]} {[%emt 00:00:43]} 30.
Bxc4 {[%clk 00:01:58]} {[%emt 00:00:14]} Qxg3 {[%clk 00:07:35]} {[%emt
00:00:50]} 31. Bb5+ {[%clk 00:02:23]} {[%emt 00:00:05]} Bc6 {[%clk 00:07:38]}
{[%emt 00:00:27]} 32. Bxg3 {[%clk 00:02:37]} {[%emt 00:00:16]} O-O {[%clk
00:07:23]} {[%emt 00:00:46]} 33. Bxc6 {[%clk 00:01:35]} {[%emt 00:01:31]} bxc6
{[%clk 00:07:44]} {[%emt 00:00:09]} 34. Rb6 {[%clk 00:01:18]} {[%emt 00:00:47]}
c5 {[%clk 00:06:48]} {[%emt 00:01:25]} 35. Bd6 {[%clk 00:01:31]} {[%emt
00:00:17]} Rfd8 {[%emt 00:00:11]} 36. Rxc5 {[%clk 00:01:15]} {[%emt 00:00:38]}
d3 {[%clk 00:07:06]} {[%emt 00:00:39]} 37. Rxc8 {[%clk 00:01:21]} {[%emt
00:00:24]} Rxc8 {[%clk 00:07:31]} {[%emt 00:00:06]} 38. Rb1 {[%clk 00:01:41]}
{[%emt 00:00:09]} d2 {[%clk 00:07:42]} {[%emt 00:00:19]} 39. Bf4 {[%clk
00:02:01]} {[%emt 00:00:09]} Rc2 {[%clk 00:07:38]} {[%emt 00:00:35]} 40. Rd1
{[%clk 00:01:59]} {[%emt 00:00:26]} Rc1 {[%clk 00:07:48]} {[%emt 00:00:26]} 41.
Rxc1 {[%clk 00:02:22]} {[%emt 00:00:07]} 1-0

[Event "Mistrovství Čech mládeže 2023 - HD16"]
[Site "Harrachov, Czech Republic"]
[Date "2023.10.23"]
[Round "3.4"]
[White "Kučina, Ondřej"]
[Black "Veverka, Vladimír"]
[Result "1-0"]
[TimeControl "90m + 30s"]
[WhiteElo "1592"]
[BlackElo "1849"]

1. d4 {[%clk 01:30:30]} {[%emt 00:25:35]} Nf6 {[%clk 01:30:44]} {[%emt
00:00:40]} 2. c4 {[%clk 01:31:10]} {[%emt 00:00:17]} e6 {[%clk 01:31:00]}
{[%emt 00:00:14]} 3. Nf3 {[%clk 01:31:23]} {[%emt 00:00:16]} b6 {[%clk
01:31:23]} {[%emt 00:00:09]} 4. g3 {[%clk 01:31:23]} {[%emt 00:00:29]} Bb7
{[%clk 01:31:42]} {[%emt 00:00:11]} 5. Bg2 {[%clk 01:31:30]} {[%emt 00:00:23]}
c5 {[%clk 01:30:14]} {[%emt 00:01:59]} 6. O-O {[%clk 01:28:42]} {[%emt
00:03:18]} cxd4 {[%clk 01:28:50]} {[%emt 00:01:54]} 7. Nxd4 {[%clk 01:28:35]}
{[%emt 00:00:36]} Bxg2 {[%clk 01:28:32]} {[%emt 00:00:49]} 8. Kxg2 {[%clk
01:28:49]} {[%emt 00:00:15]} Qc7 {[%clk 01:27:47]} {[%emt 00:01:16]} 9. b3
{[%clk 01:24:16]} {[%emt 00:05:03]} Bc5 {[%clk 01:22:06]} {[%emt 00:06:11]} 10.
Bb2 {[%clk 01:20:55]} {[%emt 00:03:51]} Bxd4 {[%clk 01:21:29]} {[%emt
00:01:07]} 11. Bxd4 {[%clk 01:20:06]} {[%emt 00:01:18]} Nc6 {[%clk 01:21:50]}
{[%emt 00:00:09]} 12. Bxf6 {[%clk 01:19:24]} {[%emt 00:01:11]} gxf6 {[%clk
01:22:14]} {[%emt 00:00:07]} 13. Nc3 {[%clk 01:19:19]} {[%emt 00:00:35]} Qe5
{[%clk 01:19:07]} {[%emt 00:03:37]} 14. Qd2 {[%clk 01:17:01]} {[%emt 00:02:49]}
h5 {[%clk 01:14:11]} {[%emt 00:05:25]} 15. Rad1 {[%clk 01:15:23]} {[%emt
00:02:07]} Rd8 {[%clk 01:10:45]} {[%emt 00:03:57]} 16. f4 {[%clk 01:12:45]}
{[%emt 00:03:07]} Qf5 {[%clk 01:05:14]} {[%emt 00:06:02]} 17. e4 {[%clk
01:05:18]} {[%emt 00:07:57]} Qg4 {[%clk 01:00:48]} {[%emt 00:04:56]} 18. Nb5
{[%clk 01:03:56]} {[%emt 00:01:53]} Kf8 {[%clk 00:58:24]} {[%emt 00:02:53]} 19.
Nd6 {[%clk 01:02:52]} {[%emt 00:01:33]} Rb8 {[%clk 00:53:57]} {[%emt 00:04:58]}
20. Nb5 {[%clk 00:56:33]} {[%emt 00:06:49]} Rd8 {[%clk 00:53:25]} {[%emt
00:01:02]} 21. h3 {[%clk 00:56:19]} {[%emt 00:00:44]} Qg7 {[%clk 00:50:53]}
{[%emt 00:03:03]} 22. Qd6+ {[%clk 00:55:02]} Kg8 {[%clk 00:50:30]} {[%emt
00:02:40]} 23. Qc7 {[%clk 00:54:25]} h4 {[%emt 00:06:53]} 24. g4 {[%clk
00:52:00]} f5 {[%clk 00:46:21]} {[%emt 00:02:18]} 25. exf5 {[%clk 00:51:53]}
{[%emt 00:00:37]} exf5 {[%clk 00:46:32]} {[%emt 00:00:19]} 26. Rxd7 {[%clk
00:46:47]} {[%emt 00:05:35]} Rxd7 {[%clk 00:45:52]} {[%emt 00:01:11]} 27. Qxd7
{[%clk 00:47:04]} {[%emt 00:00:13]} fxg4 {[%clk 00:45:56]} {[%emt 00:00:25]} 28.
Qxc6 {[%clk 00:46:08]} {[%emt 00:01:27]} gxh3+ {[%clk 00:45:16]} {[%emt
00:01:10]} 29. Kh1 {[%clk 00:45:15]} {[%emt 00:01:20]} Rh6 {[%clk 00:44:59]}
{[%emt 00:00:51]} 30. Qe8+ {[%clk 00:37:56]} {[%emt 00:07:47]} Kh7 {[%clk
00:44:32]} {[%emt 00:00:58]} 31. Qe4+ {[%clk 00:35:49]} {[%emt 00:02:37]} Rg6
{[%clk 00:42:03]} {[%emt 00:03:00]} 32. f5 {[%clk 00:34:41]} {[%emt 00:01:37]}
Rg4 {[%clk 00:42:18]} {[%emt 00:00:15]} 33. f6+ {[%clk 00:31:44]} {[%emt
00:03:26]} Rxe4 {[%clk 00:42:32]} {[%emt 00:00:17]} 34. fxg7 {[%clk 00:31:58]}
{[%emt 00:00:16]} Kxg7 {[%clk 00:42:32]} {[%emt 00:00:30]} 35. Nd6 {[%clk
00:28:50]} {[%emt 00:03:38]} Re6 {[%clk 00:39:49]} {[%emt 00:03:13]} 36. Nf5+
{[%clk 00:27:30]} {[%emt 00:01:49]} Kf8 {[%clk 00:38:27]} {[%emt 00:01:52]} 37.
Rf2 {[%clk 00:26:59]} {[%emt 00:01:00]} a5 {[%clk 00:37:32]} {[%emt 00:01:26]}
38. Kh2 {[%clk 00:26:58]} {[%emt 00:00:31]} a4 {[%clk 00:37:36]} {[%emt
00:00:26]} 39. Kxh3 {[%clk 00:26:43]} {[%emt 00:00:44]} axb3 {[%clk 00:38:00]}
{[%emt 00:00:07]} 40. axb3 {[%clk 00:27:06]} {[%emt 00:00:07]} b5 {[%clk
00:38:20]} {[%emt 00:00:10]} 41. cxb5 {[%clk 00:27:09]} {[%emt 00:00:27]} Re5
{[%clk 00:38:07]} {[%emt 00:00:44]} 42. Nd4 {[%clk 00:26:32]} {[%emt 00:01:06]}
Rd5 {[%clk 00:36:04]} {[%emt 00:02:34]} 43. Rf4 {[%clk 00:26:03]} {[%emt
00:00:58]} Ke7 {[%clk 00:36:17]} {[%emt 00:00:17]} 44. Kxh4 {[%clk 00:25:15]}
{[%emt 00:01:18]} Kd6 {[%clk 00:36:34]} {[%emt 00:00:13]} 45. Kg3 {[%clk
00:24:37]} {[%emt 00:01:06]} Kc5 {[%clk 00:35:33]} {[%emt 00:01:32]} 46. Kf3
{[%clk 00:24:16]} {[%emt 00:00:52]} Re5 {[%clk 00:35:32]} {[%emt 00:00:31]} 47.
Re4 {[%clk 00:24:04]} {[%emt 00:00:41]} Rh5 {[%clk 00:35:46]} {[%emt 00:00:17]}
48. Ke3 {[%clk 00:23:10]} {[%emt 00:01:23]} Rd5 {[%clk 00:34:41]} {[%emt
00:01:36]} 49. Rf4 {[%clk 00:21:45]} {[%emt 00:01:53]} Re5+ {[%clk 00:33:29]}
{[%emt 00:01:43]} 50. Kd3 {[%clk 00:21:54]} {[%emt 00:00:22]} Re1 {[%clk
00:33:35]} {[%emt 00:00:23]} 51. Rf5+ {[%clk 00:21:32]} {[%emt 00:00:52]} 1-0

[Event "Mistrovství Čech mládeže 2023 - HD16"]
[Site "Harrachov, Czech Republic"]
[Date "2023.10.23"]
[Round "3.5"]
[White "Ocelák, David"]
[Black "Andrle, Filip"]
[Result "0-1"]
[TimeControl "90m + 30s"]
[WhiteElo "1580"]
[BlackElo "1830"]

1. c4 {[%clk 01:30:32]} {[%emt 00:00:27]} Nf6 {[%clk 01:28:55]} {[%emt
00:02:05]} 2. g3 {[%clk 01:30:02]} {[%emt 00:01:01]} e5 {[%clk 01:29:01]}
{[%emt 00:00:25]} 3. Bg2 {[%clk 01:29:15]} {[%emt 00:01:16]} Nc6 {[%clk
01:25:15]} {[%emt 00:04:16]} 4. Nc3 {[%clk 01:28:03]} {[%emt 00:01:42]} Bb4
{[%clk 01:22:55]} {[%emt 00:02:51]} 5. a3 {[%clk 01:18:23]} {[%emt 00:10:09]}
Bxc3 {[%clk 01:22:14]} {[%emt 00:01:11]} 6. bxc3 {[%clk 01:18:08]} {[%emt
00:00:46]} O-O {[%clk 01:22:14]} {[%emt 00:00:30]} 7. e4 {[%clk 01:17:43]}
{[%emt 00:00:55]} d6 {[%clk 01:20:58]} {[%emt 00:01:46]} 8. Ne2 {[%clk
01:16:51]} {[%emt 00:01:22]} Be6 {[%clk 01:12:57]} {[%emt 00:08:31]} 9. d3
{[%clk 01:15:54]} {[%emt 00:01:26]} Nd7 {[%clk 01:00:32]} {[%emt 00:12:55]} 10.
O-O {[%clk 01:09:28]} {[%emt 00:06:56]} Kh8 {[%clk 00:50:18]} {[%emt 00:10:45]}
11. Be3 {[%clk 01:07:19]} {[%emt 00:02:39]} f5 {[%clk 00:42:35]} {[%emt
00:08:13]} 12. f3 {[%clk 00:58:23]} {[%emt 00:09:26]} fxe4 {[%clk 00:38:54]}
{[%emt 00:04:11]} 13. fxe4 {[%clk 00:57:36]} {[%emt 00:01:17]} Rxf1+ {[%clk
00:37:33]} {[%emt 00:01:52]} 14. Qxf1 {[%clk 00:54:39]} {[%emt 00:03:26]} Qe7
{[%clk 00:36:54]} {[%emt 00:01:08]} 15. Rb1 {[%clk 00:39:22]} {[%emt 00:15:48]}
b6 {[%clk 00:35:49]} {[%emt 00:01:36]} 16. Nc1 {[%clk 00:38:31]} {[%emt
00:01:20]} Rf8 {[%clk 00:35:51]} {[%emt 00:00:28]} 17. Qe2 {[%clk 00:38:25]}
{[%emt 00:00:35]} Na5 {[%clk 00:29:55]} {[%emt 00:06:27]} 18. Na2 {[%clk
00:34:09]} {[%emt 00:04:46]} c5 {[%clk 00:29:59]} {[%emt 00:00:26]} 19. Nc1
{[%clk 00:33:55]} {[%emt 00:00:44]} Nf6 {[%clk 00:28:31]} {[%emt 00:01:58]} 20.
h3 {[%clk 00:32:04]} {[%emt 00:02:21]} Qd7 {[%clk 00:28:13]} {[%emt 00:00:49]}
21. g4 {[%clk 00:21:38]} Qa4 {[%clk 00:26:21]} {[%emt 00:13:18]} 22. g5 {[%clk
00:20:31]} {[%emt 00:01:37]} Ng8 {[%clk 00:25:01]} {[%emt 00:01:49]} 23. Qe1
{[%clk 00:16:06]} {[%emt 00:04:56]} Qxa3 {[%clk 00:20:37]} {[%emt 00:04:55]} 24.
Ne2 {[%clk 00:13:56]} {[%emt 00:02:39]} Qa4 {[%clk 00:20:48]} {[%emt 00:00:19]}
25. Qh4 {[%clk 00:11:05]} {[%emt 00:03:21]} Qc2 {[%clk 00:18:48]} {[%emt
00:02:30]} 0-1

[Event "Mistrovství Čech mládeže 2023 - HD16"]
[Site "Harrachov, Czech Republic"]
[Date "2023.10.23"]
[Round "3.6"]
[White "Dobsa, Emma"]
[Black "Novotný, Dominik"]
[Result "0-1"]
[TimeControl "90m + 30s"]
[WhiteElo "1616"]
[BlackElo "1929"]

1. e4 {[%clk 01:30:56]} {[%emt 00:00:03]} c6 {[%clk 01:30:53]} {[%emt
00:00:07]} 2. d4 {[%clk 01:31:21]} {[%emt 00:00:05]} d5 {[%clk 01:31:21]}
{[%emt 00:00:02]} 3. Nd2 {[%clk 01:31:45]} {[%emt 00:00:06]} dxe4 {[%clk
01:31:43]} {[%emt 00:00:08]} 4. Nxe4 {[%clk 01:32:14]} {[%emt 00:00:02]} Bf5
{[%clk 01:31:56]} {[%emt 00:00:17]} 5. Ng3 {[%clk 01:32:38]} {[%emt 00:00:05]}
Bg6 {[%clk 01:32:18]} {[%emt 00:00:08]} 6. Nh3 {[%clk 01:33:02]} {[%emt
00:00:07]} e6 {[%clk 01:32:19]} {[%emt 00:00:29]} 7. Nf4 {[%clk 01:33:11]}
{[%emt 00:00:20]} Qh4 {[%clk 01:32:06]} {[%emt 00:00:44]} 8. Bc4 {[%clk
01:30:52]} {[%emt 00:02:50]} Bd6 {[%clk 01:31:08]} {[%emt 00:01:27]} 9. Nxg6
{[%clk 01:24:17]} {[%emt 00:07:05]} hxg6 {[%clk 01:31:20]} {[%emt 00:00:18]} 10.
Qd3 {[%clk 01:23:46]} {[%emt 00:01:00]} Nf6 {[%clk 01:27:07]} {[%emt 00:04:44]}
11. Bd2 {[%clk 01:22:09]} {[%emt 00:02:07]} Nbd7 {[%clk 01:25:01]} {[%emt
00:02:36]} 12. O-O-O {[%clk 01:19:19]} {[%emt 00:03:20]} O-O-O {[%clk
01:24:55]} {[%emt 00:00:37]} 13. a4 {[%clk 00:59:31]} {[%emt 00:20:17]} Nb6
{[%clk 01:15:57]} {[%emt 00:09:27]} 14. Bb3 {[%clk 00:48:55]} {[%emt 00:11:07]}
Bxg3 {[%clk 00:56:19]} {[%emt 00:20:07]} 15. hxg3 {[%clk 00:45:32]} {[%emt
00:03:53]} Qxh1 {[%clk 00:54:36]} {[%emt 00:02:13]} 16. Rxh1 {[%clk 00:46:00]}
{[%emt 00:00:02]} Rxh1+ {[%clk 00:54:54]} {[%emt 00:00:11]} 17. Be1 {[%clk
00:46:22]} {[%emt 00:00:09]} Rxe1+ {[%clk 00:54:54]} {[%emt 00:00:30]} 18. Kd2
{[%clk 00:46:50]} {[%emt 00:00:02]} Rh1 {[%clk 00:52:26]} {[%emt 00:02:57]} 19.
a5 {[%clk 00:46:24]} {[%emt 00:00:57]} Nbd7 {[%clk 00:48:55]} {[%emt 00:04:01]}
20. a6 {[%clk 00:46:19]} {[%emt 00:00:36]} b5 {[%clk 00:41:06]} {[%emt
00:08:18]} 21. c4 {[%clk 00:41:11]} {[%emt 00:05:37]} Nc5 {[%clk 00:40:15]}
{[%emt 00:01:21]} 22. Qf3 {[%clk 00:39:57]} {[%emt 00:01:44]} Nxb3+ {[%clk
00:40:15]} {[%emt 00:00:30]} 23. Qxb3 {[%clk 00:40:13]} {[%emt 00:00:13]} Rxd4+
{[%clk 00:40:08]} {[%emt 00:00:37]} 24. Ke3 {[%clk 00:40:21]} {[%emt 00:00:23]}
Rhd1 {[%clk 00:39:39]} {[%emt 00:00:59]} 25. Qb4 {[%clk 00:39:57]} {[%emt
00:00:54]} Re4+ {[%clk 00:40:02]} {[%emt 00:00:06]} 0-1